lending/lending_fUSD_20241212
["ID","MTS","AMOUNT","RATE_DAILY","PERIOD"]
[345110813,1734023440019,-500.0,0.0002005,2]
[345110814,1734023440028,-500.0,0.0002005,2]
[345110815,1734023440039,-500.0,0.0002005,2]
[345110816,1734023440051,-500.0,0.0002005,2]
[345110817,1734023440060,-500.0,0.0002005,2]
[345110818,1734023440071,-500.0,0.0002005,2]
[345110819,1734023440080,-740.19,0.0002005,2]
[345110820,1734023440090,-882.1,0.0002005,2]
[345110821,1734023440099,-213.11294153,0.0002005,2]
[345110822,1734023440108,-264.91939916,0.0002005,2]
[345110823,1734023440118,-988.0,0.0002005,2]
[345110824,1734023440128,-368.19919791,0.0002005,2]
[345110825,1734023440137,-500.0,0.0002005,2]
[345110826,1734023440146,-500.0,0.0002005,2]
[345110827,1734023440155,-500.0,0.0002005,2]
[345110828,1734023440165,-326.50422657,0.0002005,2]
[345110829,1734023440174,-500.0,0.0002005,2]
[345110830,1734023440183,-500.0,0.0002005,2]
[345110831,1734023440193,-1008.59,0.0002005,2]
[345110832,1734023440204,-679.43,0.0002005,2]
[345110833,1734023440213,-500.0,0.0002005,2]
[345110835,1734023440222,-500.0,0.0002005,2]
[345110836,1734023440232,-684.82,0.0002005,2]
[345110837,1734023440241,-259.20585303,0.0002005,2]
[345110838,1734023440250,-500.0,0.0002005,2]
[345110839,1734023440260,-500.0,0.0002005,2]
[345110840,1734023440269,-500.0,0.00020051,2]
[345110841,1734023440278,-500.0,0.00020051,2]
[345110842,1734023440287,-692.45,0.00020051,2]
[345110843,1734023440297,-520.89,0.00020051,2]
[345110844,1734023440306,-500.0,0.00020051,2]
[345110845,1734023440315,-1000.0,0.00020051,2]
[345110846,1734023440325,-500.0,0.00020051,2]
[345110847,1734023440334,-500.0,0.00020051,2]
[345110848,1734023440343,-500.0,0.00020051,2]
[345110849,1734023440352,-500.0,0.00020051,2]
[345110850,1734023440362,-500.0,0.00020051,2]
[345110851,1734023440371,-500.0,0.00020051,2]
[345110852,1734023440381,-500.0,0.00020051,2]
[345110854,1734023440390,-500.0,0.00020051,2]
[345110855,1734023440399,-500.0,0.00020051,2]
[345110856,1734023440409,-444.33970608,0.00020051,2]
[345110857,1734023440418,-500.0,0.00020051,2]
[345110858,1734023440428,-500.0,0.00020051,2]
[345110859,1734023440437,-500.0,0.00020051,2]
[345110860,1734023440447,-500.0,0.00020051,2]
[345110861,1734023440457,-585.04,0.00020051,2]
[345110862,1734023440466,-500.0,0.00020051,2]
[345110863,1734023440475,-500.0,0.00020051,2]
[345110864,1734023440484,-500.0,0.00020051,2]
[345110865,1734023440493,-500.0,0.00020051,2]
[345110866,1734023440503,-500.0,0.00020051,2]
[345110867,1734023440512,-500.0,0.00020051,2]
[345110868,1734023440520,-500.0,0.00020051,2]
[345110869,1734023440530,-500.0,0.00020051,2]
[345110870,1734023440539,-500.0,0.00020051,2]
[345110871,1734023440548,-500.0,0.00020051,2]
[345110872,1734023440557,-500.0,0.00020051,2]
[345110873,1734023440567,-500.0,0.00020051,2]
[345110874,1734023440576,-500.0,0.00020051,2]
[345110875,1734023440585,-500.0,0.00020051,2]
[345110876,1734023440594,-503.22,0.00020051,2]
[345110877,1734023440604,-500.0,0.00020051,2]
[345110878,1734023440613,-500.0,0.00020051,2]
[345110879,1734023440622,-670.37,0.00020051,2]
[345110880,1734023440631,-500.0,0.00020051,2]
[345110881,1734023440640,-868.77,0.00020051,2]
[345110882,1734023440650,-592.63484309,0.00020051,2]
[345110883,1734023440662,-57.79515691,0.00020051,2]
[345110884,1734023440671,-500.0,0.00020051,2]
[345110885,1734023440680,-500.0,0.00020051,2]
[345110886,1734023440689,-500.0,0.00020051,2]
[345110887,1734023440698,-500.0,0.00020051,2]
[345110888,1734023440709,-500.0,0.00020051,2]
[345110889,1734023440719,-500.0,0.00020051,2]
[345110890,1734023440728,-930.81853592,0.00020051,2]
[345110891,1734023440739,-108.40146408,0.00020051,2]
[345110892,1734023440748,-500.0,0.00020051,2]
[345110893,1734023440757,-764.01,0.00020051,2]
[345110894,1734023440767,-272.66998479,0.00020051,2]
[345110895,1734023440776,-500.0,0.0002017,2]
[345110896,1734023440786,-946.48,0.00020171,2]
[345110897,1734023440795,-500.0,0.00020171,2]
[345110898,1734023440805,-500.0,0.00020171,2]
[345110899,1734023440814,-697.39,0.00020171,2]
[345110900,1734023440824,-500.0,0.00020171,2]
[345110901,1734023440833,-500.0,0.00020171,2]
[345110902,1734023440843,-327.74594759,0.00020171,2]
[345110903,1734023440852,-500.0,0.00020171,2]
[345110904,1734023440862,-500.0,0.00020171,2]
[345110905,1734023440872,-500.0,0.00020171,2]
[345110906,1734023440881,-500.0,0.00020171,2]
[345110907,1734023440891,-500.0,0.00020171,2]
[345110908,1734023440901,-1201.48,0.00020171,2]
[345110909,1734023440910,-713.76,0.00020171,2]
[345110910,1734023440920,-501.83,0.00020171,2]
[345110911,1734023440930,-1181.18,0.00020171,2]
[345110912,1734023440940,-1301.81,0.00020171,2]
[345110913,1734023440949,-500.0,0.00020171,2]
[345110914,1734023440960,-500.0,0.00020171,2]
[345110915,1734023440970,-500.0,0.00020171,2]
[345110916,1734023440979,-1302.48,0.00020171,2]
[345110917,1734023440990,-500.0,0.00020171,2]
[345110918,1734023441002,-500.0,0.00020171,2]
[345110919,1734023441012,-500.0,0.00020171,2]
[345110920,1734023441021,-500.0,0.00020171,2]
[345110921,1734023441031,-500.0,0.00020171,2]
[345110922,1734023441041,-618.09,0.00020171,2]
[345110923,1734023441051,-500.0,0.00020171,2]
[345110924,1734023441061,-500.0,0.00020171,2]
[345110925,1734023441070,-500.0,0.00020171,2]
[345110926,1734023441080,-500.0,0.00020171,2]
[345110927,1734023441090,-500.0,0.00020171,2]
[345110928,1734023441099,-500.0,0.00020171,2]
[345110929,1734023441109,-500.0,0.00020171,2]
[345110930,1734023441118,-500.0,0.00020171,2]
[345110931,1734023441128,-598.46,0.00020171,2]
[345110932,1734023441138,-1268.03,0.00020171,2]
[345110933,1734023441147,-75.21911474,0.00020171,2]
[345110934,1734023441159,-424.78088526,0.00020171,2]
[345110935,1734023441168,-500.0,0.00020171,2]
[345110936,1734023441177,-556.21,0.00020171,2]
[345110937,1734023441186,-500.0,0.00020171,2]
[345110938,1734023441195,-459.03942803,0.00020171,2]
[345110939,1734023441209,-576.6,0.00020171,2]
[345110940,1734023441218,-615.39,0.00020171,2]
[345110941,1734023441227,-16646.12423511,0.00020173,2]
[345110946,1734023442932,-153.0,0.00019062,2]
[345110947,1734023442942,-153.0,0.00019062,2]
[345110948,1734023442952,-153.0,0.00019062,2]
[345110949,1734023442962,-927.88,0.00020049,2]
[345110950,1734023442971,-68.54591473,0.00020173,2]
[345110951,1734023442981,-2826.21877107,0.00020196,2]
[345110952,1734023443049,-153.0,0.00019062,2]
[345110953,1734023443059,-1165.85055121,0.00020196,2]
[345110954,1734023443072,-5110.12716545,0.00020196,2]
[345110955,1734023443085,-8224.6500002,0.00020196,2]
[345110956,1734023443106,-707.68406537,0.00020196,2]
[345110957,1734023443168,-42265.02486228,0.00020196,2]
[345110958,1734023443177,-739.3256641,0.00020225,2]
[345110959,1734023443187,-150.0,0.00020244,4]
[345110960,1734023443196,-257.19874437,0.00020272,2]
[345110961,1734023443206,-198.36586592,0.00020272,2]
[345110962,1734023443216,-500.0,0.00020272,2]
[345110963,1734023443225,-500.0,0.00020272,2]
[345110964,1734023443234,-500.0,0.00020272,2]
[345110965,1734023443243,-500.0,0.00020272,2]
[345110966,1734023443253,-500.0,0.00020272,2]
[345110967,1734023443262,-500.0,0.00020272,2]
[345110968,1734023443271,-500.0,0.00020272,2]
[345110969,1734023443281,-500.0,0.00020272,2]
[345110970,1734023443291,-500.0,0.00020272,2]
[345110971,1734023443300,-500.0,0.00020272,2]
[345110972,1734023443309,-500.0,0.00020272,2]
[345110973,1734023443319,-500.0,0.00020272,2]
[345110974,1734023443328,-500.0,0.00020272,2]
[345110975,1734023443338,-741.31,0.00020272,2]
[345110976,1734023443351,-403.64,0.00020272,2]
[345110977,1734023443360,-501.46927845,0.00020272,2]
[345110978,1734023443370,-500.0,0.00020272,2]
[345110979,1734023443379,-500.0,0.00020272,2]
[345110980,1734023443388,-500.0,0.00020272,2]
[345110981,1734023443397,-500.0,0.00020272,2]
[345110982,1734023443406,-500.0,0.00020272,2]
[345110983,1734023443415,-500.0,0.00020272,2]
[345110985,1734023443425,-500.0,0.00020272,2]
[345110986,1734023443434,-506.62490509,0.00020272,2]
[345110987,1734023443443,-500.0,0.00020272,2]
[345110988,1734023443452,-500.0,0.00020272,2]
[345110989,1734023443461,-500.0,0.00020272,2]
[345110990,1734023443470,-500.0,0.00020272,2]
[345110991,1734023443479,-500.0,0.00020272,2]
[345110992,1734023443488,-500.0,0.00020273,2]
[345110993,1734023443498,-500.0,0.00020273,2]
[345110994,1734023443507,-794.4,0.00020273,2]
[345110995,1734023443516,-500.0,0.00020273,2]
[345110996,1734023443526,-500.0,0.00020273,2]
[345110997,1734023443535,-763.9,0.00020273,2]
[345110998,1734023443545,-500.0,0.00020273,2]
[345110999,1734023443554,-500.0,0.00020273,2]
[345111000,1734023443564,-500.0,0.00020273,2]
[345111001,1734023443573,-524.99,0.00020273,2]
[345111002,1734023443582,-500.0,0.00020273,2]
[345111003,1734023443591,-500.0,0.00020273,2]
[345111004,1734023443600,-585.62,0.00020273,2]
[345111005,1734023443610,-500.0,0.00020273,2]
[345111006,1734023443619,-500.0,0.00020273,2]
[345111007,1734023443628,-500.0,0.00020273,2]
[345111008,1734023443638,-500.0,0.00020273,2]
[345111009,1734023443647,-500.0,0.00020273,2]
[345111010,1734023443655,-447.50128323,0.00020273,2]
[345111011,1734023443665,-500.0,0.00020273,2]
[345111012,1734023443674,-979.73,0.00020273,2]
[345111013,1734023443683,-500.0,0.00020273,2]
[345111014,1734023443692,-902.95,0.00020273,2]
[345111015,1734023443702,-544.06,0.00020273,2]
[345111016,1734023443712,-500.0,0.00020273,2]
[345111017,1734023443722,-500.0,0.00020273,2]
[345111018,1734023443731,-596.72,0.00020273,2]
[345111019,1734023443740,-511.78,0.00020273,2]
[345111020,1734023443749,-500.0,0.00020323,2]
[345111021,1734023443759,-2028.96,0.00020323,2]
[345111022,1734023443768,-162.56,0.00020323,2]
[345111023,1734023443777,-248.36,0.00020323,2]
[345111024,1734023443786,-500.0,0.00020323,2]
[345111025,1734023443796,-927.88,0.00020323,2]
[345111026,1734023443805,-500.0,0.00020324,2]
[345111027,1734023443815,-500.0,0.00020324,2]
[345111028,1734023443825,-500.0,0.00020324,2]
[345111029,1734023443834,-500.0,0.00020324,2]
[345111030,1734023443843,-500.0,0.00020324,2]
[345111031,1734023443853,-500.0,0.00020324,2]
[345111032,1734023443863,-740.19,0.00020324,2]
[345111033,1734023443872,-882.1,0.00020324,2]
[345111034,1734023443882,-988.0,0.00020324,2]
[345111035,1734023443892,-500.0,0.00020324,2]
[345111036,1734023443902,-500.0,0.00020324,2]
[345111037,1734023443912,-500.0,0.00020324,2]
[345111038,1734023443922,-500.0,0.00020324,2]
[345111039,1734023443931,-181.55,0.00020324,2]
[345111040,1734023443941,-1008.59,0.00020324,2]
[345111041,1734023443950,-679.43,0.00020324,2]
[345111042,1734023443961,-500.0,0.00020324,2]
[345111043,1734023443971,-500.0,0.00020324,2]
[345111044,1734023443980,-684.82,0.00020324,2]
[345111045,1734023443992,-500.0,0.00020324,2]
[345111046,1734023444002,-485.65947497,0.00020324,2]
[345111047,1734023444011,-500.0,0.00020325,2]
[345111048,1734023444021,-500.0,0.00020325,2]
[345111049,1734023444030,-692.45,0.00020325,2]
[345111050,1734023444041,-520.89,0.00020325,2]
[345111051,1734023444050,-500.0,0.00020325,2]
[345111052,1734023444059,-1000.0,0.00020325,2]
[345111053,1734023444069,-10.06187776,0.00020325,2]
[345111054,1734023444275,-153.0,0.00019062,2]
[345111055,1734023444285,-489.93812224,0.00020325,2]
[345111056,1734023444295,-153.55220836,0.00020325,2]
[345111057,1734023444305,-500.0,0.00020325,2]
[345111058,1734023444314,-500.0,0.00020325,2]
[345111059,1734023444324,-500.0,0.00020325,2]
[345111060,1734023444333,-500.0,0.00020325,2]
[345111061,1734023444343,-500.0,0.00020325,2]
[345111062,1734023444353,-500.0,0.00020325,2]
[345111063,1734023444363,-500.0,0.00020325,2]
[345111064,1734023444373,-500.0,0.00020325,2]
[345111065,1734023444382,-500.0,0.00020325,2]
[345111066,1734023444392,-585.04,0.00020325,2]
[345111067,1734023444401,-500.0,0.00020325,2]
[345111068,1734023444568,-500.0,0.00020325,2]
[345111069,1734023444578,-500.0,0.00020325,2]
[345111070,1734023444588,-500.0,0.00020325,2]
[345111071,1734023444597,-500.0,0.00020325,2]
[345111072,1734023444606,-500.0,0.00020325,2]
[345111073,1734023444616,-500.0,0.00020325,2]
[345111074,1734023444625,-500.0,0.00020325,2]
[345111075,1734023444635,-500.0,0.00020325,2]
[345111076,1734023444644,-500.0,0.00020325,2]
[345111077,1734023444653,-500.0,0.00020325,2]
[345111078,1734023444663,-500.0,0.00020325,2]
[345111079,1734023444672,-500.0,0.00020325,2]
[345111080,1734023444681,-579.34761263,0.00020325,2]
[345111081,1734023444690,-503.22,0.00020325,2]
[345111082,1734023444699,-500.0,0.00020325,2]
[345111083,1734023444715,-500.0,0.00020325,2]
[345111084,1734023444726,-670.37,0.00020325,2]
[345111085,1734023444737,-500.0,0.00020325,2]
[345111086,1734023444746,-868.77,0.00020325,2]
[345111087,1734023444757,-650.43,0.00020325,2]
[345111088,1734023444767,-248.12845647,0.00020325,2]
[345111089,1734023444778,-500.0,0.00020325,2]
[345111090,1734023444788,-500.0,0.00020325,2]
[345111091,1734023444798,-500.0,0.00020325,2]
[345111092,1734023444807,-500.0,0.00020325,2]
[345111093,1734023444817,-500.0,0.00020325,2]
[345111094,1734023444826,-1039.22,0.00020325,2]
[345111095,1734023444836,-500.0,0.00020325,2]
[345111096,1734023444845,-764.01,0.00020325,2]
[345111097,1734023444855,-739.32566404,0.0002038,2]
[345111098,1734023444864,-16714.67014979,0.0002042,2]
[345111099,1734023444873,-500.0,0.00020444,2]
[345111100,1734023444882,-500.0,0.00020445,2]
[345111101,1734023444892,-697.39,0.00020445,2]
[345111102,1734023444901,-500.0,0.00020445,2]
[345111103,1734023444910,-500.0,0.00020445,2]
[345111104,1734023444919,-500.0,0.00020445,2]
[345111105,1734023444929,-500.0,0.00020445,2]
[345111106,1734023444939,-500.0,0.00020445,2]
[345111107,1734023444948,-500.0,0.00020445,2]
[345111108,1734023444960,-500.0,0.00020445,2]
[345111109,1734023444970,-1201.48,0.00020445,2]
[345111110,1734023444979,-713.76,0.00020445,2]
[345111111,1734023444989,-501.83,0.00020445,2]
[345111112,1734023445001,-1181.18,0.00020445,2]
[345111113,1734023445010,-1301.81,0.00020445,2]
[345111114,1734023445019,-500.0,0.00020445,2]
[345111115,1734023445029,-500.0,0.00020445,2]
[345111116,1734023445039,-566.83061339,0.00020445,2]
[345111117,1734023445049,-1302.48,0.00020445,2]
[345111118,1734023445059,-500.0,0.00020445,2]
[345111119,1734023445069,-500.0,0.00020445,2]
[345111120,1734023445078,-500.0,0.00020445,2]
[345111121,1734023445089,-500.0,0.00020445,2]
[345111122,1734023445098,-500.0,0.00020445,2]
[345111123,1734023445107,-618.09,0.00020445,2]
[345111124,1734023445116,-500.0,0.00020445,2]
[345111125,1734023445127,-500.0,0.00020445,2]
[345111126,1734023445137,-500.0,0.00020445,2]
[345111127,1734023445148,-500.0,0.00020445,2]
[345111128,1734023445159,-500.0,0.00020445,2]
[345111129,1734023445170,-435.45265464,0.00020445,2]
[345111130,1734023445179,-598.46,0.00020445,2]
[345111131,1734023445188,-1268.03,0.00020445,2]
[345111132,1734023445198,-500.0,0.00020445,2]
[345111133,1734023445210,-500.0,0.00020445,2]
[345111134,1734023445221,-556.21,0.00020445,2]
[345111135,1734023445232,-500.0,0.00020445,2]
[345111136,1734023445243,-576.6,0.00020445,2]
[345111137,1734023445252,-615.39,0.00020445,2]
[345111139,1734023445262,-60299.55541558,0.00020471,2]
[345111140,1734023445271,-217.0,0.000205,8]
[345111141,1734023445280,-739.32566404,0.00020536,2]
[345111142,1734023445289,-500.0,0.00020546,2]
[345111143,1734023445298,-501.6483017,0.00020546,2]
[345111144,1734023445308,-500.0,0.00020546,2]
[345111146,1734023445317,-531.6602932,0.00020546,2]
[345111147,1734023445326,-500.0,0.00020546,2]
[345111148,1734023445335,-500.0,0.00020546,2]
[345111149,1734023445345,-500.0,0.00020546,2]
[345111150,1734023445354,-500.0,0.00020546,2]
[345111151,1734023445363,-500.0,0.00020546,2]
[345111152,1734023445372,-500.0,0.00020546,2]
[345111153,1734023445382,-500.0,0.00020546,2]
[345111154,1734023445391,-741.31,0.00020546,2]
[345111155,1734023445401,-500.0,0.00020546,2]
[345111156,1734023445410,-500.0,0.00020546,2]
[345111157,1734023445419,-500.0,0.00020546,2]
[345111158,1734023445429,-500.0,0.00020546,2]
[345111159,1734023445438,-500.0,0.00020546,2]
[345111160,1734023445447,-500.0,0.00020546,2]
[345111161,1734023445459,-500.0,0.00020546,2]
[345111162,1734023445468,-500.0,0.00020546,2]
[345111163,1734023445477,-500.0,0.00020546,2]
[345111164,1734023445486,-500.0,0.00020547,2]
[345111165,1734023445495,-500.0,0.00020547,2]
[345111166,1734023445504,-794.4,0.00020547,2]
[345111167,1734023445514,-500.0,0.00020547,2]
[345111168,1734023445523,-500.0,0.00020547,2]
[345111169,1734023445533,-763.9,0.00020547,2]
[345111170,1734023445542,-500.0,0.00020547,2]
[345111171,1734023445552,-500.0,0.00020547,2]
[345111172,1734023445561,-500.0,0.00020547,2]
[345111173,1734023445570,-524.99,0.00020547,2]
[345111174,1734023445580,-500.0,0.00020547,2]
[345111175,1734023445589,-500.0,0.00020547,2]
[345111176,1734023445598,-585.62,0.00020547,2]
[345111177,1734023445607,-500.0,0.00020547,2]
[345111178,1734023445616,-500.0,0.00020547,2]
[345111179,1734023445626,-500.0,0.00020547,2]
[345111180,1734023445635,-500.0,0.00020547,2]
[345111181,1734023445644,-500.0,0.00020547,2]
[345111182,1734023445654,-500.0,0.00020547,2]
[345111183,1734023445664,-979.73,0.00020547,2]
[345111184,1734023445674,-500.0,0.00020547,2]
[345111185,1734023445683,-902.95,0.00020547,2]
[345111186,1734023445693,-544.06,0.00020547,2]
[345111187,1734023445704,-500.0,0.00020547,2]
[345111188,1734023445714,-500.0,0.00020547,2]
[345111189,1734023445724,-596.72,0.00020547,2]
[345111190,1734023445734,-511.78,0.00020547,2]
[345111191,1734023445743,-179.23,0.00020548,2]
[345111192,1734023445753,-500.0,0.00020597,2]
[345111193,1734023445763,-2028.96,0.00020597,2]
[345111194,1734023445772,-500.0,0.00020597,2]
[345111195,1734023445781,-927.88,0.00020597,2]
[345111196,1734023445791,-500.0,0.00020598,2]
[345111197,1734023445800,-500.0,0.00020598,2]
[345111198,1734023445810,-500.0,0.00020598,2]
[345111199,1734023445820,-500.0,0.00020598,2]
[345111200,1734023445829,-500.0,0.00020598,2]
[345111201,1734023445838,-500.0,0.00020598,2]
[345111202,1734023445849,-740.19,0.00020598,2]
[345111203,1734023445858,-882.1,0.00020598,2]
[345111204,1734023445868,-988.0,0.00020598,2]
[345111205,1734023445879,-500.0,0.00020598,2]
[345111206,1734023445889,-500.0,0.00020598,2]
[345111207,1734023445898,-500.0,0.00020598,2]
[345111208,1734023445908,-1008.59,0.00020598,2]
[345111209,1734023445918,-679.43,0.00020598,2]
[345111210,1734023445927,-500.0,0.00020598,2]
[345111211,1734023445937,-684.82,0.00020598,2]
[345111212,1734023445947,-500.0,0.00020598,2]
[345111213,1734023445957,-500.0,0.00020599,2]
[345111214,1734023445966,-500.0,0.00020599,2]
[345111215,1734023445976,-692.45,0.00020599,2]
[345111216,1734023445986,-520.89,0.00020599,2]
[345111217,1734023445999,-500.0,0.00020599,2]
[345111218,1734023446009,-1000.0,0.00020599,2]
[345111219,1734023446019,-500.0,0.00020599,2]
[345111220,1734023446028,-469.53257672,0.00020599,2]
[345111221,1734023446039,-500.0,0.00020599,2]
[345111222,1734023446048,-500.0,0.00020599,2]
[345111223,1734023446058,-500.0,0.00020599,2]
[345111224,1734023446067,-500.0,0.00020599,2]
[345111225,1734023446077,-500.0,0.00020599,2]
[345111226,1734023446087,-585.04,0.00020599,2]
[345111227,1734023446096,-500.0,0.00020599,2]
[345111228,1734023446106,-500.0,0.00020599,2]
[345111229,1734023446116,-500.0,0.00020599,2]
[345111230,1734023446125,-500.0,0.00020599,2]
[345111231,1734023446135,-500.0,0.00020599,2]
[345111232,1734023446144,-500.0,0.00020599,2]
[345111233,1734023446154,-500.0,0.00020599,2]
[345111234,1734023446163,-500.0,0.00020599,2]
[345111235,1734023446173,-500.0,0.00020599,2]
[345111236,1734023446182,-500.0,0.00020599,2]
[345111237,1734023446191,-500.0,0.00020599,2]
[345111238,1734023446200,-503.22,0.00020599,2]
[345111239,1734023446211,-500.0,0.00020599,2]
[345111240,1734023446220,-670.37,0.00020599,2]
[345111241,1734023446230,-625.81729804,0.00020599,2]
[345111242,1734023446239,-868.77,0.00020599,2]
[345111243,1734023446248,-650.43,0.00020599,2]
[345111244,1734023446258,-196.28940156,0.00020599,2]
[345111245,1734023446267,-500.0,0.00020599,2]
[345111246,1734023446277,-500.0,0.00020599,2]
[345111247,1734023446286,-500.0,0.00020599,2]
[345111248,1734023446295,-500.0,0.00020599,2]
[345111249,1734023446305,-1039.22,0.00020599,2]
[345111250,1734023446315,-500.0,0.00020599,2]
[345111251,1734023446325,-764.01,0.00020599,2]
[345111252,1734023446334,-757.39332461,0.00020658,2]
[345111253,1734023446343,-16714.67014979,0.00020668,2]
[345111254,1734023446353,-739.32566404,0.00020691,2]
[345111255,1734023446362,-500.0,0.00020718,2]
[345111256,1734023446372,-500.0,0.00020719,2]
[345111257,1734023446381,-697.39,0.00020719,2]
[345111258,1734023446391,-500.0,0.00020719,2]
[345111259,1734023446400,-500.0,0.00020719,2]
[345111260,1734023446410,-500.0,0.00020719,2]
[345111261,1734023446419,-500.0,0.00020719,2]
[345111262,1734023446429,-500.0,0.00020719,2]
[345111263,1734023446438,-500.0,0.00020719,2]
[345111264,1734023446448,-1201.48,0.00020719,2]
[345111265,1734023446459,-713.76,0.00020719,2]
[345111266,1734023446468,-501.83,0.00020719,2]
[345111267,1734023446478,-1181.18,0.00020719,2]
[345111268,1734023446487,-1301.81,0.00020719,2]
[345111269,1734023446496,-467.54350851,0.00020719,2]
[345111270,1734023446505,-1302.48,0.00020719,2]
[345111271,1734023446513,-500.0,0.00020719,2]
[345111272,1734023446522,-500.0,0.00020719,2]
[345111273,1734023446529,-500.0,0.00020719,2]
[345111274,1734023446537,-500.0,0.00020719,2]
[345111275,1734023446544,-500.0,0.00020719,2]
[345111276,1734023446552,-618.09,0.00020719,2]
[345111277,1734023446560,-500.0,0.00020719,2]
[345111278,1734023446568,-500.0,0.00020719,2]
[345111279,1734023446576,-535.82675873,0.00020719,2]
[345111280,1734023446584,-500.0,0.00020719,2]
[345111281,1734023446591,-500.0,0.00020719,2]
[345111282,1734023446600,-598.46,0.00020719,2]
[345111283,1734023446609,-1268.03,0.00020719,2]
[345111284,1734023446617,-334.73311056,0.00020719,2]
[345111285,1734023446624,-500.0,0.00020719,2]
[345111286,1734023446630,-556.21,0.00020719,2]
[345111287,1734023446636,-500.0,0.00020719,2]
[345111288,1734023446643,-576.6,0.00020719,2]
[345111289,1734023446649,-615.39,0.00020719,2]
[345111290,1734023446657,-60299.55541558,0.00020747,2]
[345111291,1734023446666,-503.0944956,0.0002082,2]
[345111292,1734023446675,-228.11497175,0.0002082,2]
[345111293,1734023446684,-446.39559262,0.0002082,2]
[345111294,1734023446694,-500.0,0.0002082,2]
[345111295,1734023446703,-500.0,0.0002082,2]
[345111296,1734023446712,-500.0,0.0002082,2]
[345111297,1734023446721,-500.0,0.0002082,2]
[345111298,1734023446730,-500.0,0.0002082,2]
[345111299,1734023446740,-741.31,0.0002082,2]
[345111300,1734023446750,-500.0,0.0002082,2]
[345111301,1734023446760,-500.0,0.0002082,2]
[345111302,1734023446769,-500.0,0.0002082,2]
[345111303,1734023446778,-500.0,0.0002082,2]
[345111304,1734023446787,-500.0,0.0002082,2]
[345111305,1734023446796,-171.39001272,0.0002082,2]
[345111306,1734023446806,-500.0,0.0002082,2]
[345111307,1734023446815,-500.0,0.0002082,2]
[345111308,1734023446825,-500.0,0.0002082,2]
[345111309,1734023446835,-500.0,0.00020821,2]
[345111310,1734023446844,-500.0,0.00020821,2]
[345111311,1734023446853,-794.4,0.00020821,2]
[345111312,1734023446863,-500.0,0.00020821,2]
[345111313,1734023446872,-500.0,0.00020821,2]
[345111314,1734023446881,-763.9,0.00020821,2]
[345111315,1734023446890,-500.0,0.00020821,2]
[345111316,1734023446899,-500.0,0.00020821,2]
[345111317,1734023446908,-500.0,0.00020821,2]
[345111318,1734023446918,-524.99,0.00020821,2]
[345111319,1734023446927,-566.7742118,0.00020821,2]
[345111320,1734023446937,-500.0,0.00020821,2]
[345111321,1734023446946,-585.62,0.00020821,2]